{"text_format":"1","workbook":"xlsx","n_sheets":2,"sheets":["ورقة1","ورقة2"],"not_rendered":{"charts":0,"images":0,"macros":1,"external_links":0,"defined_names":0,"comments":0,"pivot_tables":0},"unopened":[],"bounds":{"document_bytes":16777216,"sheet_cells":100000,"rows_first":2000,"rows_last":500,"rows_between":2000,"halvings":0,"cell_chars":16384,"cell_head_chars":4096},"cells_cut":0,"cells_raw":0,"read":"whole","date_system":"1900"}

{"sheet":"ورقة1","index":0,"n_rows":24,"n_cols":14,"rows_kept":24,"cut":false,"hidden":false,"merged":[]}
[null,null,"محرم","صفر","ربيع اول","ربيع اخر","جمادى اول","جمادى ثانى","رجب","شعبان ","رمضان","شوال","ذو القعدة","ذو الحجة"]
[null,null,"1900-01-01","1900-01-02",3,4,5,6,7,8,9,10,11,12]
[null,null,null,null,null,null,null,null,null,null,null,"21:42:38"]
[null,"التسلسل ","التاريخ الهجرى ","التاريخ الميلادى ","الحدث طبقا ل","الحدث طبقا الى "]
[null,null,"01/01/650",{"$f":"IFERROR(ConvertDate(C5),\"\")","v":"20/03/1252"}]
[null,null,"01/07/640",{"$f":"IFERROR(ConvertDate(C6),\"\")","v":"31/12/1242"}]
[null,null,"01/06/470","25/12/1077"]
[null,null,"01/02/720","20/03/1320"]
[null,null,null,""]
[null,null,null,""]
[null,null,null,""]
[null,null,null,""]
[null,null,null,""]
[null,null,null,""]
[null,null,null,""]
[null,null,null,""]
[null,null,null,""]
[null,null,null,""]
[null,null,null,""]
[null,null,null,""]
[null,null,null,""]
[null,null,null,""]
[null,null,null,""]
[null,null,null,""]

{"sheet":"ورقة2","index":1,"n_rows":47,"n_cols":10,"rows_kept":47,"cut":false,"hidden":false,"merged":[[3,3,3,5],[3,7,3,8],[18,3,18,5],[18,7,18,8]]}
[]
[]
[]
[null,null,"الحاكم ","فترة الحكم",null,null,null,"حياة الحاكم "]
[null,null,"  الأيوبيون في مصر من قبل الزنكيين","من","هجرى","حتى","هجرى","من","حتى","  "]
[null,null,"  أبو المظفر صلاح الدين يوسف بن نجم الدين أيوب بن شاذي"," 1169",{"$f":"D6","v":" 1169"}," 1174",null," 1137"," 1193","  كان صلاح الدين قائداً على مصر من طرف نور الدين زنكي وقد أزال الخلافة الفاطمية بأمره سنة 1171مـ"]
[null,null,"  الأيوبيون (الملوك) في مصر",null,null,null,null,null,null,"  "]
[" 1",null,"  أبو المظفر صلاح الدين \"الملك الناصر\" يوسف بن نجم الدين أيوب بن شاذي"," 1174",null," 4-3-1193",null,null," 1193","  ....ثم استقل بالأمر بعد وفاة هذا الأخير"]
[" 2",null,"  أبو الفتح عماد الدين \"الملك العزيز\" عثمان بن صلاح الدين يوسف"," 4-3-1193",null," 29-11-1198",null,null," 1199","  "]
[" 3",null,"  ناصر الدين \"الملك المنصور\" محمد بن عماد الدين عثمان"," 3-12-1198",null," 1200",null,null,null,"  كان عمره تسع سنوات فتولى الأمر عنه بهاء الدين قراقوش الأتابكي"]
[" 4",null,"  أبو بكر سيف الدين \"الملك العادل\" أحمد بن نجم الدين أيوب"," 1200",null," 31-8-1218",null,null," 1218","  مع إمارته للشام"]
[" 5",null,"  أبو المعالي ناصر الدين \"الملك الكامل\" محمد بن سيف الدين أحمد"," 8-1218",null," 10-3-1238",null,null," 1238","  مع إمارته للشام"]
[" 6",null,"  سيف الدين \"الملك العادل (2)\" أبو بكر بن ناصر الدين محمد"," 2-1238",null," 28-6-1240",null,null," 1240","  مع إمارته للشام، ثم خلع"]
[" 7",null,"  أبو الفتح نجم الدين \"الملك الصالح (2)\" أيوب بن ناصر الدين محمد"," 7-1240",null," 23-11-1249",null,null," 1249","  مع إمارته للشام"]
[null,null,"  --- أم خليل شجر الدر"," 23-11-1249",null," 27-2-1250",null,null," 1257","  تولت شؤوون الدولة حتى مقدم توران شاه إلى مصر"]
[" 8",null,"  \"الملك المعظم\" توران شاه بن صلاح الدين يوسف بن غياث الدين محمد"," 11-1249",null," 3-5-1250",null,null," 1250","  قتله مماليك أبيه الصالح بعد شهرين"]
[" 9",null,"  مظفر الدين \"الملك الأشرف\" موسى بن المسعود يوسف بن ناصر الدين محمد"," 5-5-1250",null," 1252",null,null,null,"  اسميا ثم عزل، وبقى اسمه في الخطبة حتى 652 هـ"]
[" 10",null,"  أم خليل عصمة الدنيا والدين \"المستعصمية\" شجر الدر"," 14-5-1250",null," 31-7-1250",null,null," 1257","  زوجة الصالح نجم الدين، حكمت مصر ثمانين يوما ثم تخلت عن الحكم لزوجها الثاني عز الدين أيبك"]
[]
[null,null,"  المماليك البحريون",null,null,null,null,null,null,"  "]
[" 1",null,"  المعز عز الدين أيبك"," 1250",null," 1257",null,null,null,"  "]
[" 2",null,"  المنصور نور الدين علي بن أيبك"," 1257",null," 1259",null,null,null,"  "]
[" 3",null,"  المظفر سيف الدين قطز"," 1259",null," 1260",null,null,null,"  "]
[" 4",null,"  الظاهر ركن الدين بيبرس البندقداري"," 1260",null," 1277",null,null,null,"  "]
[" 5",null,"  السعيد ناصر الدين أبو المعالى محمد بن بركة خان بن بيبرس"," 1277",null," 1279",null,null,null,"  "]
[" 6",null,"  العادل بدر الدين سلامش بن الظاهر بيبرس"," 1279",null," 1279",null,null,null,"  "]
[" 7",null,"  المنصور سيف الدين قلاوون الألفى"," 1279",null," 1290",null,null,null,"  "]
[" 8",null,"  الأشرف صلاح الدين خليل بن قلاوون"," 1290",null," 1293",null,null,null,"  طرد الصلببيين من عكا و أنهى وجودهم في المشرق"]
[" 9",null,"  الناصر محمد بن قلاوون"," 1293",null," 1294",null,null,null,"  خلع"]
[" 10",null,"  العادل زين الدين كتبغا المنصور"," 1294",null," 1296",null,null,null,"  "]
[" 11",null,"  المنصور حسام الدين لاجين"," 1296",null," 1298",null,null,null,"  "]
[" 9-2",null,"  الناصر محمد بن قلاوون"," 1298",null," 1308",null,null,null,"  مرة ثانية ثم تنازل"]
[" 12",null,"  المظفر ركن الدين بيبرس الجاشنكير"," 1308",null," 1309",null,null,null,"  "]
[" 9-3",null,"  الناصر محمد بن قلاوون"," 1309",null," 1340",null,null,null,"  مرة ثالثة"]
[" 13",null,"  المنصور سيف الدين أبو بكر بن الناصر محمد بن قلاوون"," 1340",null," 1341",null,null,null,"  "]
[" 14",null,"  الأشرف علاء الدين كوجك بن الناصر محمد"," 1341",null," 1342",null,null,null,"  "]
[" 15",null,"  الناصر شهاب الدين أحمد بن الناصر محمد"," 1342",null," 1342",null,null,null,"  "]
[" 16",null,"  الصالح عماد الدين إسماعيل بن الناصر محمد"," 1342",null," 1345",null,null,null,"  "]
[" 17",null,"  الكامل سيف الدين شعبان بن الناصر محمد"," 1345",null," 1346",null,null,null,"  "]
[" 18",null,"  المظفر زين الدين حاجي بن الناصر محمد"," 1346",null," 1347",null,null,null,"  "]
[" 19",null,"  الناصر بدر الدين أبو المعالي الحسن بن الناصر محمد"," 1347",null," 1351",null,null,null,"  "]
[" 20",null,"  الصالح صلاح الدين صالح بن الناصر محمد"," 1351",null," 1354",null,null,null,"  "]
[" 19-2",null,"  الناصر بدر الدين أبو المعالي الحسن بن الناصر محمد"," 1354",null," 1361",null,null,null,"  مرة ثانية"]
[" 21",null,"  المنصور صلاح الدين محمد بن حاجي بن قلاوون"," 1361",null," 1363",null,null,null,"  "]
[" 22",null,"  الأشرف زين الدين شعبان بن حسن بن محمد بن قلاوون"," 1363",null," 1376",null,null,null,"  "]
[" 23",null,"  المنصور علاء الدين علي بن شعبان"," 1376",null," 1381",null,null,null,"  "]
[" 24",null,"  الصالح زين الدين حاجى"," 1381",null," 1382",null,null,null,"  شاركه فى السلطنة الأمير برقوق"]